bitfinex/quotes_BTCUSD_20250530
["timestamp","ask_amount","ask_price","bid_price","bid_amount"]
[1748579118738,0.07276828,105950.0,105940.0,2.29512485]
[1748579119012,0.07276828,105950.0,105940.0,2.32344185]
[1748579119736,0.07276828,105950.0,105940.0,0.90566085]
[1748579119956,0.07276828,105950.0,105940.0,1.93036485]
[1748579120691,0.07276828,105950.0,105940.0,1.80215185]
[1748579120936,0.07276828,105950.0,105940.0,1.46830185]
[1748579121189,0.07276828,105950.0,105940.0,1.42929685]
[1748579121946,0.07276828,105950.0,105940.0,1.50754085]
[1748579122400,0.07276828,105950.0,105940.0,1.10754085]
[1748579122867,0.07276828,105950.0,105940.0,1.54760985]
[1748579123859,0.18875047,105960.0,105940.0,1.54760985]
[1748579124139,0.18875047,105960.0,105950.0,1.13477195]
[1748579124657,0.18875047,105960.0,105950.0,1.15077195]
[1748579126312,0.18875047,105960.0,105950.0,1.16034112]
[1748579126539,0.18975047,105960.0,105950.0,1.16034112]
[1748579126810,0.18875047,105960.0,105950.0,1.16034112]
[1748579127898,0.18875047,105960.0,105950.0,1.17574112]
[1748579131079,0.14875047,105960.0,105950.0,1.17574112]
[1748579131777,0.14875047,105960.0,105950.0,1.19028197]
[1748579132474,0.14875047,105960.0,105950.0,1.37905025]
[1748579132696,0.14875047,105960.0,105950.0,1.19028197]
[1748579133829,0.14875047,105960.0,105950.0,1.59028197]
[1748579137743,0.14875047,105960.0,105950.0,1.30152197]
[1748579137963,0.14875047,105960.0,105950.0,1.59012197]
[1748579142371,0.14875047,105960.0,105950.0,1.59377478]
[1748579143461,0.14875047,105960.0,105950.0,1.46554338]
[1748579143682,0.20762524,105960.0,105950.0,6.04327347]
[1748579143905,0.20762524,105960.0,105950.0,5.25593406]
[1748579144549,0.20762524,105960.0,105950.0,5.66259906]
[1748579144990,0.20762524,105960.0,105950.0,5.65130406]
[1748579145253,0.20762524,105960.0,105950.0,5.66074247]
[1748579145465,0.20762524,105960.0,105950.0,5.65130406]
[1748579145674,0.20762524,105960.0,105950.0,5.66075238]
[1748579145875,0.20762524,105960.0,105950.0,5.62356006]
[1748579146130,0.20762524,105960.0,105950.0,5.41577806]
[1748579146774,0.20762524,105960.0,105950.0,5.10238106]
[1748579147193,0.20762524,105960.0,105950.0,4.95556806]
[1748579147949,0.20762524,105960.0,105950.0,5.19595906]
[1748579148220,0.20762524,105960.0,105950.0,5.10568506]
[1748579149060,0.20762524,105960.0,105950.0,5.18200906]
[1748579150016,0.20762524,105960.0,105950.0,5.03935406]
[1748579150243,0.20762524,105960.0,105950.0,5.00814106]
[1748579150711,0.20762524,105960.0,105950.0,3.79947006]
[1748579150975,0.20762524,105960.0,105950.0,3.25882306]
[1748579151237,0.20762524,105960.0,105950.0,3.46648306]
[1748579152171,0.20762524,105960.0,105950.0,3.72310606]
[1748579152674,0.20762524,105960.0,105950.0,3.00817906]
[1748579152917,0.20762524,105960.0,105950.0,2.97864106]
[1748579153178,0.20762524,105960.0,105950.0,1.45516506]
[1748579153416,0.20762524,105960.0,105950.0,3.24888206]
[1748579153657,0.20762524,105960.0,105950.0,2.89377406]
[1748579154333,0.20762524,105960.0,105950.0,3.13457606]
[1748579154787,0.1981879,105960.0,105950.0,2.56872778]
[1748579155045,0.1981879,105960.0,105950.0,3.13457606]
[1748579155333,0.1981879,105960.0,105950.0,1.45516506]
[1748579155543,0.1981879,105960.0,105950.0,2.79675506]
[1748579156419,0.1981879,105960.0,105950.0,3.01707306]
[1748579157311,0.1981879,105960.0,105950.0,1.45516506]
[1748579157524,0.1981879,105960.0,105950.0,3.47414006]
[1748579158372,0.1981879,105960.0,105950.0,3.68290106]
[1748579159796,0.1981879,105960.0,105950.0,3.68298906]
[1748579160028,0.1981879,105960.0,105950.0,3.45348906]
[1748579160747,0.1981879,105960.0,105950.0,3.68299306]
[1748579160987,0.1981879,105960.0,105950.0,3.45349306]
[1748579161236,0.1981879,105960.0,105950.0,3.11349306]
[1748579161726,0.1981879,105960.0,105950.0,3.34299106]
[1748579161972,0.1981879,105960.0,105950.0,3.10170206]
[1748579162195,0.1981879,105960.0,105950.0,3.44170206]
[1748579162897,0.1981879,105960.0,105950.0,3.72431906]
[1748579163806,0.1981879,105960.0,105950.0,1.45516506]
[1748579164047,0.1981879,105960.0,105950.0,3.67360706]
[1748579164270,0.1981879,105960.0,105950.0,3.38268306]
[1748579164724,0.1981879,105960.0,105950.0,3.34606306]
[1748579164952,0.1981879,105960.0,105950.0,3.13729906]
[1748579166107,0.1981879,105960.0,105950.0,3.62150206]
[1748579167220,0.1981879,105960.0,105950.0,3.61680906]
[1748579167656,0.1981879,105960.0,105950.0,3.38730906]
[1748579168412,0.1981879,105960.0,105950.0,3.16746306]
[1748579168630,0.1981879,105960.0,105950.0,3.16150147]
[1748579168848,0.1981879,105960.0,105950.0,3.16746306]
[1748579169071,0.1213879,105960.0,105950.0,3.16746306]
[1748579169283,0.1213879,105960.0,105950.0,3.91007206]
[1748579169497,0.1213879,105960.0,105950.0,3.85583106]
[1748579170360,0.1213879,105960.0,105950.0,4.74150406]
[1748579171430,0.1213879,105960.0,105950.0,1.45516506]
[1748579171646,0.1213879,105960.0,105950.0,4.74150406]
[1748579172527,0.1213879,105960.0,105950.0,4.74141406]
[1748579174062,0.1213879,105960.0,105950.0,4.67653406]
[1748579174573,0.1213879,105960.0,105950.0,4.74141806]
[1748579174793,0.1213879,105960.0,105950.0,4.43163906]
[1748579174996,0.1213879,105960.0,105950.0,4.22649206]
[1748579175427,0.1213879,105960.0,105950.0,3.15206506]
[1748579175645,0.1213879,105960.0,105950.0,3.14828306]
[1748579175860,0.1213879,105960.0,105950.0,3.04828306]
[1748579176326,0.1213879,105960.0,105950.0,2.48997706]
[1748579176755,0.1213879,105960.0,105950.0,2.77454606]
[1748579177433,0.1213879,105960.0,105950.0,2.58577778]
[1748579177658,0.1213879,105960.0,105950.0,2.59651506]
[1748579177871,0.1213879,105960.0,105950.0,2.90542506]
[1748579178083,0.1213879,105960.0,105950.0,3.09921689]
[1748579179050,0.1213879,105960.0,105950.0,3.10309889]
[1748579179265,0.1213879,105960.0,105950.0,3.08799889]
[1748579180096,0.1213879,105960.0,105950.0,1.41501589]
[1748579180301,0.1213879,105960.0,105950.0,3.08420689]
[1748579181311,0.1213879,105960.0,105950.0,1.41501589]
[1748579181525,0.1213879,105960.0,105950.0,3.08381689]
[1748579181733,0.1213879,105960.0,105950.0,2.94233889]
[1748579182360,0.1213879,105960.0,105950.0,1.41501589]
[1748579182567,0.1213879,105960.0,105950.0,3.08911789]
[1748579183401,0.1213879,105960.0,105950.0,1.41501589]
[1748579183614,0.1213879,105960.0,105950.0,3.95958289]
[1748579184464,0.1213879,105960.0,105950.0,4.03592289]
[1748579185128,0.1213879,105960.0,105950.0,3.26014589]
[1748579185555,0.1213879,105960.0,105950.0,1.43081589]
[1748579185774,0.1213879,105960.0,105950.0,3.84691461]
[1748579186617,0.1213879,105960.0,105950.0,3.11479561]
[1748579186832,0.1213879,105960.0,105950.0,2.97945061]
[1748579187692,0.1213879,105960.0,105950.0,3.05423561]
[1748579188099,0.1213879,105960.0,105950.0,2.97943661]
[1748579188717,0.1213879,105960.0,105950.0,2.97945661]
[1748579189461,0.1213879,105960.0,105950.0,3.00777161]
[1748579189667,0.1213879,105960.0,105950.0,1.27036261]
[1748579189885,0.1213879,105960.0,105950.0,3.81117361]
[1748579190515,0.1213879,105960.0,105950.0,3.76400361]
[1748579190716,0.1213879,105960.0,105950.0,3.81118361]
[1748579191791,0.1213879,105960.0,105950.0,3.92468161]
[1748579192209,0.1213879,105960.0,105950.0,3.73969661]
[1748579192418,0.1213879,105960.0,105950.0,2.96391961]
[1748579192601,0.1213879,105960.0,105950.0,2.78157961]
[1748579192846,0.1213879,105960.0,105950.0,3.01107961]
[1748579193260,0.1213879,105960.0,105950.0,2.55225461]
[1748579193464,0.1213879,105960.0,105950.0,2.62500261]
[1748579194114,0.1213879,105960.0,105950.0,3.32357861]
[1748579194934,0.1213879,105960.0,105950.0,1.25448261]
[1748579195140,0.1213879,105960.0,105950.0,4.20009161]
[1748579196171,0.1213879,105960.0,105950.0,4.30132261]
[1748579196375,0.1213879,105960.0,105950.0,4.33474119]
[1748579196807,0.1213879,105960.0,105950.0,3.60614419]
[1748579197016,0.1213879,105960.0,105950.0,4.11001119]
[1748579197874,0.1213879,105960.0,105950.0,4.11001292]
[1748579198069,0.1213879,105960.0,105950.0,1.28790292]
[1748579198287,0.1213879,105960.0,105950.0,4.7338962]
[1748579198505,0.1213879,105960.0,105950.0,4.54512792]
[1748579199207,0.1213879,105960.0,105950.0,4.95340492]
[1748579200370,0.1213879,105960.0,105950.0,5.05176892]
[1748579201067,0.1213879,105960.0,105950.0,4.82226992]
[1748579201282,0.1213879,105960.0,105950.0,4.61712192]
[1748579201620,0.1213879,105960.0,105950.0,3.59390792]
[1748579201834,0.1213879,105960.0,105950.0,3.40766392]
[1748579202052,0.1213879,105960.0,105950.0,3.40766399]
[1748579202500,0.1213879,105960.0,105950.0,3.48116899]
[1748579203089,0.1213879,105960.0,105950.0,3.42556399]
[1748579203500,0.1213879,105960.0,105950.0,3.51605399]
[1748579203716,0.1213879,105960.0,105950.0,3.17816099]
[1748579204467,0.1213879,105960.0,105950.0,1.28790299]
[1748579204684,0.1213879,105960.0,105950.0,3.43219499]
[1748579205517,0.1213879,105960.0,105950.0,1.30310299]
[1748579205721,0.1213879,105960.0,105950.0,4.94824999]
[1748579206379,0.1213879,105960.0,105950.0,4.94825009]
[1748579207707,0.1213879,105960.0,105950.0,4.44644009]
[1748579207915,0.1213879,105960.0,105950.0,4.42560609]
[1748579208337,0.1213879,105960.0,105950.0,4.40699809]
[1748579208675,0.1213879,105960.0,105950.0,1.30310309]
[1748579208893,0.1213879,105960.0,105950.0,4.59655809]
[1748579209549,0.1213879,105960.0,105950.0,4.53603896]
[1748579209774,0.1213879,105960.0,105950.0,4.52083896]
[1748579210269,0.1213879,105960.0,105950.0,4.46700896]
[1748579210990,0.1213879,105960.0,105950.0,4.89191396]
[1748579211199,0.1213879,105960.0,105950.0,4.90741396]
[1748579211424,0.1213879,105960.0,105950.0,5.09618224]
[1748579211840,0.1213879,105960.0,105950.0,5.10562065]
[1748579212043,0.1213879,105960.0,105950.0,5.08644724]
[1748579212254,0.1213879,105960.0,105950.0,4.70952724]
[1748579212460,0.1213879,105960.0,105950.0,4.97809724]
[1748579212681,0.1213879,105960.0,105950.0,4.95622124]
[1748579212888,0.1213879,105960.0,105950.0,4.98165965]
[1748579213091,0.1213879,105960.0,105950.0,5.48472897]
[1748579213300,0.1213879,105960.0,105950.0,5.47529065]
[1748579213706,0.1213879,105960.0,105950.0,5.46585224]
[1748579214173,0.1213879,105960.0,105950.0,5.77978224]
[1748579214640,0.1213879,105960.0,105950.0,5.78921987]
[1748579215096,0.1213879,105960.0,105950.0,5.77978146]
[1748579215276,0.1213879,105960.0,105950.0,5.76985246]
[1748579216152,0.1213879,105960.0,105950.0,1.51732546]
[1748579216325,0.1213879,105960.0,105950.0,5.91093946]
[1748579216606,0.1213879,105960.0,105950.0,5.71606146]
[1748579217229,0.1213879,105960.0,105950.0,5.88346587]
[1748579217974,0.1213879,105960.0,105950.0,5.87402746]
[1748579218383,0.1213879,105960.0,105950.0,6.39848587]
[1748579218589,0.1213879,105960.0,105950.0,6.38904746]
[1748579218791,0.1213879,105960.0,105950.0,6.38904646]
[1748579218957,0.1213879,105960.0,105950.0,6.17339146]
[1748579219364,0.1213879,105960.0,105950.0,6.18754487]
[1748579219531,0.1213879,105960.0,105950.0,6.17810646]
[1748579219754,0.1213879,105960.0,105950.0,6.18754478]
[1748579219959,0.1213879,105960.0,105950.0,6.18754487]
[1748579220367,0.1213879,105960.0,105950.0,6.17003146]
[1748579220565,0.1213879,105960.0,105950.0,6.08103546]
[1748579220771,0.11195047,105960.0,105950.0,6.08103546]
[1748579221003,0.11195047,105960.0,105950.0,6.09047378]
[1748579221356,0.11195047,105960.0,105950.0,6.21612987]
[1748579221774,0.11195047,105960.0,105950.0,6.14999587]
[1748579222203,0.11195047,105960.0,105950.0,5.94889246]
[1748579222423,0.11195047,105960.0,105950.0,5.54893046]
[1748579223118,0.11195047,105960.0,105950.0,5.55836887]
[1748579223332,0.11195047,105960.0,105950.0,5.54893046]
[1748579223541,0.11195047,105960.0,105950.0,6.55132319]
[1748579224447,0.11195047,105960.0,105950.0,6.5607616]
[1748579224672,0.20528365,105970.0,105960.0,2.991762]
[1748579224903,0.20528365,105970.0,105960.0,3.0973568]
[1748579225336,0.20528365,105970.0,105960.0,3.4973568]
[1748579225337,0.18878365,105970.0,105960.0,3.4973568]
[1748579226867,0.18878365,105970.0,105960.0,3.0973568]
[1748579227501,0.18878365,105970.0,105960.0,3.1857568]
[1748579227708,0.18878365,105970.0,105960.0,3.4740368]
[1748579228463,0.18878365,105970.0,105960.0,3.86559202]
[1748579230880,0.21978365,105970.0,105960.0,1.68939695]
[1748579231094,0.21978365,105970.0,105960.0,1.28134495]
[1748579231517,0.21978365,105970.0,105960.0,1.24796595]
[1748579232619,0.21978365,105970.0,105960.0,0.83582795]
[1748579232827,0.21978365,105970.0,105960.0,0.94940595]
[1748579234248,0.21978365,105970.0,105960.0,0.94924078]
[1748579236278,0.55978365,105970.0,105960.0,0.481752]
[1748579236495,0.55978365,105970.0,105940.0,0.40752905]
[1748579236496,0.21380651,105950.0,105940.0,0.40752905]
[1748579236708,0.23030651,105950.0,105940.0,0.49588905]
[1748579236927,0.23030651,105950.0,105940.0,0.875183]
[1748579238515,0.23030651,105950.0,105940.0,0.878183]
[1748579238731,0.23030651,105950.0,105940.0,0.881183]
[1748579242384,0.23030651,105950.0,105940.0,0.592943]
[1748579242612,0.23030651,105950.0,105940.0,0.881183]
[1748579248254,0.23030651,105950.0,105940.0,0.00604905]
[1748579248521,0.3062691,105950.0,105940.0,0.00604905]
[1748579248706,0.3062691,105950.0,105940.0,0.29428905]
[1748579249161,0.3062691,105950.0,105940.0,0.29128905]
[1748579249363,0.3062691,105950.0,105940.0,0.28828905]
[1748579250019,0.2662691,105950.0,105940.0,0.28828905]
[1748579250219,0.27570733,105950.0,105940.0,0.28828905]
[1748579251912,0.19974474,105950.0,105940.0,0.28828905]
[1748579252459,0.53974474,105950.0,105940.0,0.28828905]
[1748579252681,0.53974474,105950.0,105940.0,0.28832905]
[1748579253147,0.55604474,105950.0,105940.0,0.28832905]
[1748579253780,0.21604474,105950.0,105940.0,0.28832905]
[1748579257171,0.17604474,105950.0,105940.0,0.28832905]
[1748579259440,0.17604474,105950.0,105940.0,4.905e-05]
[1748579265394,0.13604474,105950.0,105940.0,4.905e-05]
[1748579272436,0.09604474,105950.0,105940.0,4.905e-05]
[1748579279630,0.23100651,105950.0,105940.0,4.905e-05]
[1748579280583,0.21470651,105950.0,105940.0,4.905e-05]
[1748579285065,0.21470651,105950.0,105940.0,0.01614905]
[1748579286082,0.21470651,105950.0,105940.0,4.905e-05]
[1748579286711,0.17470651,105950.0,105940.0,4.905e-05]
[1748579288343,0.18414474,105950.0,105940.0,4.905e-05]
[1748579289441,0.18414474,105950.0,105940.0,0.01504905]
[1748579289643,0.18414474,105950.0,105940.0,0.03094905]
[1748579290143,0.18414474,105950.0,105940.0,0.122003]
[1748579290315,0.18414474,105950.0,105940.0,0.498483]
[1748579291580,0.18414474,105950.0,105940.0,1.236106]
[1748579291738,0.18414474,105950.0,105940.0,1.37906822]
[1748579291928,0.18414474,105950.0,105940.0,0.987513]
[1748579293383,0.18414474,105950.0,105940.0,0.498483]
[1748579293791,0.14414474,105950.0,105940.0,0.498483]
[1748579293996,0.14414474,105950.0,105940.0,0.11922905]
[1748579294262,0.14414474,105950.0,105940.0,0.40742905]
[1748579296998,0.14414474,105950.0,105940.0,0.11922905]
[1748579297221,0.14414474,105950.0,105940.0,0.40738905]
[1748579300842,0.10414474,105950.0,105940.0,0.40738905]
[1748579305567,0.13544474,105950.0,105940.0,4.905e-05]
[1748579305775,0.13544474,105950.0,105940.0,0.28816905]
[1748579306400,0.13544474,105950.0,105940.0,4.905e-05]
[1748579306859,0.55140733,105950.0,105940.0,4.905e-05]
[1748579307918,0.51140733,105950.0,105940.0,4.905e-05]
[1748579308368,0.43544474,105950.0,105940.0,4.905e-05]
[1748579314936,0.38073823,105950.0,105940.0,4.905e-05]
[1748579315135,0.56950651,105950.0,105940.0,4.905e-05]
[1748579319092,0.66056046,105950.0,105940.0,4.905e-05]
[1748579320647,0.74880046,105950.0,105940.0,4.905e-05]
[1748579320910,0.77434131,105950.0,105940.0,4.905e-05]
[1748579321158,1.26224131,105950.0,105940.0,4.905e-05]
[1748579321597,1.26324131,105950.0,105940.0,4.905e-05]
[1748579321971,1.26224131,105950.0,105940.0,4.905e-05]
[1748579322377,1.26624131,105950.0,105940.0,4.905e-05]
[1748579322515,0.90530927,105950.0,105940.0,4.905e-05]
[1748579322736,0.90430927,105950.0,105940.0,4.905e-05]
[1748579323164,0.90730927,105950.0,105940.0,4.905e-05]
[1748579324921,0.92227076,105950.0,105940.0,4.905e-05]
[1748579325862,0.8846028,105950.0,105940.0,4.905e-05]
[1748579326561,0.86964131,105950.0,105940.0,4.905e-05]
[1748579329529,0.77034131,105950.0,105940.0,4.905e-05]
[1748579329739,0.68210131,105950.0,105940.0,4.905e-05]
[1748579329972,0.77034131,105950.0,105940.0,4.905e-05]
[1748579331393,0.78034131,105950.0,105940.0,4.905e-05]
[1748579337386,0.8846028,105950.0,105940.0,4.905e-05]
[1748579344419,0.31122195,105950.0,105940.0,0.03044905]
[1748579344682,0.20520651,105950.0,105940.0,0.03044905]
[1748579345558,0.20520651,105950.0,105940.0,0.04008642]
[1748579345780,0.20520651,105950.0,105940.0,0.52309662]
[1748579346019,0.20520651,105950.0,105940.0,0.13114037]
[1748579346226,0.20120651,105950.0,105940.0,0.15305728]
[1748579346431,0.20420651,105950.0,105940.0,0.15305728]
[1748579346650,0.20120651,105950.0,105940.0,0.15305728]
[1748579346848,0.20320651,105950.0,105940.0,0.15305728]
[1748579347089,0.16020651,105950.0,105940.0,0.15305728]
[1748579347311,0.15820651,105950.0,105940.0,0.15305728]
[1748579347549,0.16764474,105950.0,105940.0,0.15305728]
[1748579348236,0.16764474,105950.0,105940.0,0.42848086]
[1748579349662,0.16764474,105950.0,105940.0,0.82848086]
[1748579350320,0.16764474,105950.0,105940.0,0.83786169]
[1748579352351,0.17708288,105950.0,105940.0,1.90062869]
[1748579352553,0.17708288,105950.0,105940.0,2.36258494]
[1748579352771,0.17708288,105950.0,105940.0,1.97062869]
[1748579352992,0.21708306,105950.0,105940.0,5.0142527]
[1748579353208,0.20764492,105950.0,105940.0,4.0892746]
[1748579353421,0.20764492,105950.0,105940.0,4.0902746]
[1748579353655,0.20764492,105950.0,105940.0,4.29560155]
[1748579353833,0.01887637,105950.0,105940.0,1.84708082]
[1748579354068,0.03775274,105950.0,105940.0,6.64825091]
[1748579354286,0.21708306,105950.0,105940.0,6.63881197]
[1748579354708,0.21708306,105950.0,105940.0,6.63881206]
[1748579354933,0.21708306,105950.0,105940.0,1.86934206]
[1748579355156,0.21708306,105950.0,105940.0,6.71167745]
[1748579355685,0.21708306,105950.0,105940.0,6.72111675]
[1748579356506,0.21708306,105950.0,105940.0,6.91934197]
[1748579357502,0.21708306,105950.0,105940.0,6.90990285]
[1748579357866,0.21708306,105950.0,105940.0,6.90990249]
[1748579358073,0.21708306,105950.0,105940.0,6.90052166]
[1748579358501,0.20764501,105950.0,105940.0,3.35538101]
[1748579358679,0.20764501,105950.0,105940.0,3.32606226]
[1748579359082,0.20764501,105950.0,105940.0,4.18522226]
[1748579359486,0.20764501,105950.0,105940.0,4.11595426]
[1748579359669,0.20764501,105950.0,105940.0,4.08960826]
[1748579360330,0.20764501,105950.0,105940.0,4.89417826]
[1748579360475,0.20764501,105950.0,105940.0,4.72653126]
[1748579361046,0.20764501,105950.0,105940.0,4.72653127]
[1748579361473,0.20764501,105950.0,105940.0,4.99974127]
[1748579361691,0.20764501,105950.0,105940.0,4.86974127]
[1748579361893,0.20764501,105950.0,105940.0,4.83744227]
[1748579362265,0.20764501,105950.0,105940.0,1.65221627]
[1748579362487,0.20764501,105950.0,105940.0,4.83697227]
[1748579363050,0.20764501,105950.0,105940.0,4.81432427]
[1748579363249,0.20764501,105950.0,105940.0,1.65221627]
[1748579363448,0.20764501,105950.0,105940.0,4.82272127]
[1748579364462,0.20764501,105950.0,105940.0,5.16686227]
[1748579364794,0.20764501,105950.0,105940.0,4.93738327]
[1748579365221,0.20764501,105950.0,105940.0,4.87942327]
[1748579365450,0.20764501,105950.0,105940.0,5.07121227]
[1748579365685,0.20764501,105950.0,105940.0,4.97117027]
[1748579366621,0.20764501,105950.0,105940.0,5.28391527]
[1748579367546,0.20764501,105950.0,105940.0,6.25127927]
[1748579367772,0.20764501,105950.0,105940.0,6.21572627]
[1748579368224,0.20764501,105950.0,105940.0,5.98622627]
[1748579368604,0.20764501,105950.0,105940.0,6.21572727]
[1748579368992,0.20764501,105950.0,105940.0,5.61442527]
[1748579369193,0.20764501,105950.0,105940.0,5.73262727]
[1748579369568,0.20764501,105950.0,105940.0,5.94929927]
[1748579370252,0.20764501,105950.0,105940.0,6.03745927]
[1748579370674,0.20764501,105950.0,105940.0,1.76865227]
[1748579370875,0.20764501,105950.0,105940.0,6.04318227]
[1748579371717,0.20764501,105950.0,105940.0,1.76865227]
[1748579371895,0.20764501,105950.0,105940.0,6.03818227]
[1748579372107,0.20764501,105950.0,105940.0,5.95909927]
[1748579372734,0.20764501,105950.0,105940.0,1.76865227]
[1748579372956,0.20764501,105950.0,105940.0,6.41469327]
[1748579373157,0.20764501,105950.0,105940.0,6.33469327]
[1748579373803,0.20764501,105950.0,105940.0,1.76865227]
[1748579374024,0.20764501,105950.0,105940.0,6.32992527]
[1748579374229,0.20764501,105950.0,105940.0,6.33357808]
[1748579374620,0.20764501,105950.0,105940.0,6.04678408]
[1748579374989,0.20764501,105950.0,105940.0,6.33357708]
[1748579375821,0.20764501,105950.0,105940.0,2.57119183]
[1748579376032,0.20764501,105950.0,105940.0,1.83128498]
[1748579376240,0.20764501,105950.0,105940.0,2.11924498]
[1748579376875,0.20764501,105950.0,105940.0,1.77559217]
[1748579377076,0.20764501,105950.0,105940.0,3.49173917]
[1748579377303,0.20764501,105950.0,105940.0,3.48247898]
[1748579377716,0.20764501,105950.0,105940.0,3.87443523]
[1748579378136,0.20764501,105950.0,105940.0,3.74980523]
[1748579379127,0.20764501,105950.0,105940.0,1.41776423]
[1748579379326,0.20764501,105950.0,105940.0,3.96198223]
[1748579379706,0.20764501,105950.0,105940.0,3.87148223]
[1748579380299,0.20764501,105950.0,105940.0,2.68867023]
[1748579380508,0.20764501,105950.0,105940.0,2.68199911]
[1748579380716,0.20764501,105950.0,105940.0,2.29670787]
[1748579381182,0.20764501,105950.0,105940.0,2.00874787]
[1748579381409,0.20764501,105950.0,105940.0,1.99940787]
[1748579381618,0.20764501,105950.0,105940.0,2.33940787]
[1748579382465,0.20764501,105950.0,105940.0,4.27066787]
[1748579383272,0.20764501,105950.0,105940.0,1.36580187]
[1748579383579,0.20764501,105950.0,105940.0,4.34189887]
[1748579383765,0.20764501,105950.0,105940.0,4.25809887]
[1748579384005,0.20764501,105950.0,105940.0,3.40298787]
[1748579384204,0.20764501,105950.0,105940.0,3.00298787]
[1748579384417,0.20764501,105950.0,105940.0,0.96580187]
[1748579384637,0.20764501,105950.0,105940.0,3.62070287]
[1748579385571,0.20764501,105950.0,105940.0,4.26087987]
[1748579385759,0.20764501,105950.0,105940.0,4.11938787]
[1748579386793,0.20764501,105950.0,105940.0,4.32455087]
[1748579387864,0.20764501,105950.0,105940.0,4.21645887]
[1748579388071,0.20764501,105950.0,105940.0,4.09493687]
[1748579389105,0.20764501,105950.0,105940.0,1.36580187]
[1748579389311,0.20764501,105950.0,105940.0,4.32685887]
[1748579389465,0.20764501,105950.0,105940.0,3.92685887]
[1748579390489,0.20764501,105950.0,105940.0,3.92685878]
[1748579392042,0.20764501,105950.0,105940.0,4.31854009]
[1748579392240,0.20764501,105950.0,105940.0,4.31850709]
[1748579393235,0.20764501,105950.0,105940.0,4.62757809]
[1748579393437,0.20764501,105950.0,105940.0,4.42244809]
[1748579394314,0.20764501,105950.0,105940.0,1.35748309]
[1748579394513,0.20764501,105950.0,105940.0,4.72602409]
[1748579395275,0.20764501,105950.0,105940.0,1.35748309]
[1748579395500,0.20764501,105950.0,105940.0,4.76349009]
[1748579396101,0.20764501,105950.0,105940.0,4.69861909]
[1748579396531,0.20764501,105950.0,105940.0,4.76350109]
[1748579397412,0.20764501,105950.0,105940.0,5.09855409]
[1748579397628,0.20764501,105950.0,105940.0,5.09855209]
[1748579398255,0.20764501,105950.0,105940.0,5.07007309]
[1748579398459,0.20764501,105950.0,105940.0,1.75748309]
[1748579398693,0.20764501,105950.0,105940.0,4.86492509]
[1748579399618,0.20764501,105950.0,105940.0,4.63542509]
[1748579400249,0.20764501,105950.0,105940.0,4.34746509]
[1748579400465,0.20764501,105950.0,105940.0,3.01760609]
[1748579400677,0.20764501,105950.0,105940.0,3.49147109]
[1748579401764,0.20764501,105950.0,105940.0,1.75744309]
[1748579401972,0.20764501,105950.0,105940.0,4.92492309]
[1748579402407,0.20764501,105950.0,105940.0,4.71977509]
[1748579403081,0.20764501,105950.0,105940.0,4.71990909]
[1748579403297,0.20764501,105950.0,105940.0,4.43198909]
[1748579403505,0.20764501,105950.0,105940.0,4.28015109]
[1748579403716,0.20764501,105950.0,105940.0,3.88846978]
[1748579403927,0.20764501,105950.0,105940.0,1.36576178]
[1748579404129,0.20764501,105950.0,105940.0,4.18378678]
[1748579404556,0.20764501,105950.0,105940.0,4.57546809]
[1748579405199,0.18878365,105970.0,105940.0,1.37198394]
[1748579405442,0.18878365,105970.0,105960.0,3.85903747]
[1748579405443,0.19822001,105970.0,105960.0,3.85903747]
[1748579405665,0.19822001,105970.0,105960.0,3.16973516]
[1748579405883,0.19822001,105970.0,105960.0,3.66380753]
[1748579406102,0.19822001,105970.0,105960.0,3.68910211]
[1748579406321,0.19822001,105970.0,105960.0,3.69212011]
[1748579406778,0.19822001,105970.0,105960.0,3.48351311]
[1748579407020,0.19822001,105970.0,105960.0,3.48551311]
[1748579407231,0.19822001,105970.0,105960.0,3.48351311]
[1748579407436,0.19822001,105970.0,105960.0,3.48651311]
[1748579408087,0.19822001,105970.0,105960.0,3.0968318]
[1748579408758,0.19822001,105970.0,105960.0,3.48836202]
[1748579408968,0.19822001,105970.0,105960.0,3.49771879]
[1748579409631,0.19822001,105970.0,105960.0,3.69590678]
[1748579409842,0.19822001,105970.0,105960.0,3.50136529]
[1748579409843,0.18878365,105970.0,105960.0,3.50136529]
[1748579410531,0.32327371,105970.0,105960.0,0.008018]
[1748579410807,0.66327371,105970.0,105960.0,0.008018]
[1748579411044,0.66327371,105970.0,105960.0,0.005]
[1748579411045,0.66482256,105970.0,105960.0,0.005]
[1748579411294,0.72750019,105970.0,105960.0,0.003]
[1748579411558,0.73698774,105970.0,105960.0,0.003]
[1748579411796,0.74825045,105970.0,105960.0,0.005]
[1748579412038,0.76582964,105970.0,105960.0,0.005]
[1748579412290,0.76582964,105970.0,105960.0,0.002]
[1748579412540,0.76582881,105970.0,105960.0,0.002]
[1748579412780,0.7658288,105970.0,105960.0,0.005]
[1748579413005,0.22055047,105960.0,105940.0,4.905e-05]
[1748579413242,0.23000651,105950.0,105940.0,4.905e-05]
[1748579413484,0.23000651,105950.0,105940.0,0.28808905]
[1748579415883,0.23000651,105950.0,105940.0,0.35808905]
[1748579417287,0.19000651,105950.0,105940.0,0.35808905]
[1748579417510,0.19944474,105950.0,105940.0,0.35808905]
[1748579424149,0.15944474,105950.0,105940.0,0.35808905]
[1748579427758,0.12764474,105950.0,105940.0,0.35808905]
[1748579427979,0.12764474,105950.0,105940.0,0.35800905]
[1748579428427,0.14354474,105950.0,105940.0,0.35800905]
[1748579428911,0.15954474,105950.0,105940.0,0.35800905]
[1748579431312,0.11954474,105950.0,105940.0,0.35800905]
[1748579431526,0.08764474,105950.0,105940.0,0.35800905]
[1748579432191,0.10284474,105950.0,105940.0,0.35800905]
[1748579432391,0.10284474,105950.0,105940.0,0.44624905]
[1748579432800,0.11944474,105950.0,105940.0,0.44624905]
[1748579436536,0.11944474,105950.0,105940.0,0.35800905]
[1748579436741,0.11944474,105950.0,105940.0,0.28800905]
[1748579438321,0.07944474,105950.0,105940.0,0.28800905]
[1748579438501,0.07944474,105950.0,105940.0,0.35800905]
[1748579440002,0.09703589,105950.0,105940.0,0.35800905]
[1748579440309,0.09707168,105950.0,105940.0,0.35800905]
[1748579440757,0.09707149,105950.0,105940.0,0.35800905]
[1748579441241,0.07944474,105950.0,105940.0,0.35800905]
[1748579441455,0.09707184,105950.0,105940.0,0.35800905]
[1748579441668,0.09707571,105950.0,105940.0,0.35800905]
[1748579442090,0.09707571,105950.0,105940.0,0.07004905]
[1748579442291,0.09707571,105950.0,105940.0,0.35800905]
[1748579442643,0.09707591,105950.0,105940.0,0.35800905]
[1748579443682,0.09707554,105950.0,105940.0,0.35800905]
[1748579443923,0.07944474,105950.0,105940.0,0.35800905]
[1748579445017,0.09707684,105950.0,105940.0,0.35800905]
[1748579445246,0.097076,105950.0,105940.0,0.35800905]
[1748579445425,0.24584428,105950.0,105940.0,0.07004905]
[1748579445664,0.22821302,105950.0,105940.0,0.35800905]
[1748579445867,0.24584357,105950.0,105940.0,0.35800905]
[1748579446185,0.24584359,105950.0,105940.0,0.35800905]
[1748579446393,0.64417561,105950.0,105940.0,0.07004905]
[1748579446585,0.64417561,105950.0,105940.0,4.905e-05]
[1748579446586,0.85230277,105950.0,105940.0,4.905e-05]